Cogmind - Beta 14 *** ADVENTURER MODE // 2025.03.28 @ 15:09:02 // Winter2019/RPGLIKE Player: Lava Result: Destroyed by B-75 Beast with Heavy Plasma Cannon Performance ------------- Evolutions (4) 2000 Regions Visited (12) 2400 Robots Destroyed (188) 940 Value Destroyed (6842) 6842 Prototype IDs (48) 960 Alien Tech Used (0) 0 Bonus (654) 654 TOTAL SCORE: 13796 Bonus ------- Follower Combat Kills 75 Aligned with FarCom 300 Met Data Miner 300 Friendly Fire -21 Cogmind --------- Core Integrity 0/1000 Matter 177/300 Energy 290/290 System Corruption 0% Temperature Cool (12) Movement Flying (26) Location -6/Lower Caves Parts ------- > --- POWER (1) -------- Improved Deuterium Engine > --- PROPULSION (4) --- Cooled VTOL Module Cooled VTOL Module Cooled VTOL Module Cooled VTOL Module > --- UTILITY (10) ----- Advanced Signal Interpreter Improved Terrain Scanner 0b10 Alert Chip Advanced Targeting Computer Hacking Suite Improved Hacking Suite Improved Hacking Suite Improved Hacking Suite System Shield System Shield > --- WEAPON (2) ------- Gauss Rifle Coil Gun > --- INVENTORY (3) ---- Gauss Rifle Heavy Rocket Launcher Great Maul Peak State ------------ > --- POWER ------------ Improved Deuterium Engine > --- PROPULSION ------- Cooled VTOL Module Cooled VTOL Module Cooled VTOL Module Cooled VTOL Module > --- UTILITY ---------- Advanced Signal Interpreter Improved Terrain Scanner 0b10 Alert Chip Advanced Targeting Computer Hacking Suite Improved Hacking Suite Improved Hacking Suite Improved Hacking Suite System Shield System Shield > --- WEAPON ----------- Gauss Rifle Coil Gun > --- INVENTORY -------- Gauss Rifle Heavy Rocket Launcher Great Maul [Rating: 75] Favorites ----------- Power Improved Deuterium Engine Engine Improved Deuterium Engine Power Core Light Nuclear Core Propulsion Armored Treads Treads Armored Treads Hover Unit Improved Airjet Flight Unit Cooled VTOL Module Utility Hacking Suite Device Experimental Sensor Array Processor 0b10 Alert Chip Hackware Hacking Suite Protection Improved Light Armor Plating Weapon Gauss Rifle Ballistic Gun Gauss Rifle Launcher Heavy Rocket Launcher Impact Weapon Great Maul Build | -11 -10 -10 -10 -9 -8 -7 -7 -7 -7 -6 -6 -6 ------- Run | Yrd Mat Min Exi Min Mat Fac Low Low Dat Pro Fac Low Slots Evolved 13 | 3 . . . . 4 4 1 . . . 1 . Power . | . . . . . . . . . . . . . Propulsion 3 | 1 . . . . . 2 . . . . . . Utility 9 | 1 . . . . 4 2 1 . . . 1 . Weapon 1 | 1 . . . . . . . . . . . . Parts Attached 83 | 5 6 . 1 . 23 32 5 . . . 11 . Power 7 | 1 1 . . . 1 2 2 . . . . . Engine 6 | 1 . . . . 1 2 2 . . . . . Core 1 | . 1 . . . . . . . . . . . Reactor . | . . . . . . . . . . . . . Propulsion 19 | 2 . . . . 5 12 . . . . . . Treads 8 | 2 . . . . 4 2 . . . . . . Leg . | . . . . . . . . . . . . . Wheel . | . . . . . . . . . . . . . Hover 1 | . . . . . . 1 . . . . . . Flight 10 | . . . . . 1 9 . . . . . . Utility 29 | . 3 . 1 . 7 8 1 . . . 9 . Device 10 | . 1 . . . 1 3 . . . . 5 . Storage . | . . . . . . . . . . . . . Processor 6 | . 1 . 1 . 3 . . . . . 1 . Hackware 10 | . . . . . 2 4 1 . . . 3 . Protection 3 | . 1 . . . 1 1 . . . . . . Artifact . | . . . . . . . . . . . . . Weapon 28 | 2 2 . . . 10 10 2 . . . 2 . Energy Gun . | . . . . . . . . . . . . . Energy Cannon . | . . . . . . . . . . . . . Ballistic Gun 21 | 2 2 . . . 8 6 1 . . . 2 . Ballistic Cannon . | . . . . . . . . . . . . . Launcher 1 | . . . . . . 1 . . . . . . Special Weapon . | . . . . . . . . . . . . . Impact Weapon 6 | . . . . . 2 3 1 . . . . . Slashing Weapon . | . . . . . . . . . . . . . Piercing Weapon . | . . . . . . . . . . . . . Special Melee Weapon . | . . . . . . . . . . . . . Unidentified Prototypes 5 | . . . . . 4 1 . . . . . . Parts Lost 2 | . . . . . . 1 . . . . 1 . Power . | . . . . . . . . . . . . . Propulsion . | . . . . . . . . . . . . . Utility 2 | . . . . . . 1 . . . . 1 . Weapon . | . . . . . . . . . . . . . Highest Loss Streak 1 | . . . . . . 1 . . . . 1 . To Critical Strikes . | . . . . . . . . . . . . . Average Slot Usage (%) 98 | . 95 100 100 100 99 98 100 100 100 100 99 100 Engine 5 | . 5 . . . 3 6 6 6 6 6 5 5 Core 3 | . 8 14 14 14 5 . . . . . . . Treads 15 | . 28 28 28 28 18 12 . . . . . . Flight 6 | . . . . . . 6 25 25 25 25 24 23 Device 7 | . 12 14 7 . 9 5 6 6 6 6 5 5 Processor 21 | . 11 14 20 28 26 22 18 18 18 18 17 17 Hackware 18 | . . . . . 15 24 28 31 31 31 31 35 Protection 1 | . . . . . 1 2 . . . . . . Ballistic Gun 17 | . 27 28 28 28 18 14 11 12 12 12 11 11 Peak Build Rating 75 | 5 9 9 14 15 43 63 64 65 65 65 74 75 Average Rating 43 | 3 7 9 11 14 37 52 62 64 65 65 69 74 On Entrance 37 | . 5 9 9 14 15 43 61 64 65 65 65 74 Naked Turns . | . . . . . . . . . . . . . Heaviest Build 22 | 6 10 10 10 9 16 22 19 19 19 19 20 20 Greatest Support 55 | 40 40 40 40 40 42 55 35 35 35 35 35 35 Greatest Overweight (x) . | . . . . . . . . . . . . . Average Overweight (x) . | . . . . . . . . . . . . . Largest Inventory Capacity 3 | 3 3 3 3 3 3 3 3 3 3 3 3 3 Average Capacity 3 | 3 3 3 3 3 3 3 3 3 3 3 3 3 Most Carried 3 | 3 3 3 3 3 3 3 3 3 3 3 3 3 Average Carried 2 | . 2 3 3 2 2 2 2 2 3 3 2 2 Final Capacity 3 | 3 3 3 3 3 3 3 3 3 3 3 3 3 Final Carried 3 | . 3 3 3 3 3 2 2 3 3 3 2 3 Class Distribution -------------------- 62% | Hacker-Skirmisher 13% | Mutant 10% | Wizard-Scout 8% | Hacker-Scout 4% | Skirmisher Dominant Class ---------------- Mutant | -10/Materials Mutant | -10/Mines Mutant | -10/Exiles Skirmisher | -9/Mines Hacker-Skirmisher | -8/Materials Hacker-Skirmisher | -7/Factory Wizard-Scout | -7/Lower Caves Wizard-Scout | -7/Lower Caves Wizard-Scout | -7/Data Miner Wizard-Scout | -6/Proximity Caves Wizard-Scout | -6/Factory Wizard-Scout | -6/Lower Caves Resources | -11 -10 -10 -10 -9 -8 -7 -7 -7 -7 -6 -6 -6 ----------- Run | Yrd Mat Min Exi Min Mat Fac Low Low Dat Pro Fac Low Matter Collected 5239 | 237 293 54 . 34 1073 2542 320 86 . . 179 421 Remotely . | . . . . . . . . . . . . . Salvage Created 6829 | . 489 120 . 50 1516 3544 213 100 . . 226 571 Parts 452 | . 35 3 . 7 125 215 18 11 . . 16 22 Haulers Intercepted 3 | . 1 . . . 1 1 . . . . . . Recyclers Shooed 6 | . . . . . 3 2 . . . . 1 . Parts Field Recycled . | . . . . . . . . . . . . . Retrieved Matter . | . . . . . . . . . . . . . Parts Self-Destructed 54 | . . . . . . . 22 11 . . . 21 Prevented 1 | . . . . . . . 1 . . . . . Kills | -11 -10 -10 -10 -9 -8 -7 -7 -7 -7 -6 -6 -6 ------- Run | Yrd Mat Min Exi Min Mat Fac Low Low Dat Pro Fac Low Combat Hostiles Destroyed 161 | . 12 2 . 4 39 74 9 4 . . 5 12 Guns 155 | . 12 2 . 4 39 68 9 4 . . 5 12 AOE 6 | . . . . . . 6 . . . . . . Classes Destroyed 15 | . 4 . . . 5 6 . . . . . . Worker 4 | . . . . . 2 2 . . . . . . Builder 3 | . . . . . 2 1 . . . . . . Tunneler 1 | . . . . . . 1 . . . . . . Hauler 3 | . 1 . . . 1 1 . . . . . . Recycler 3 | . . . . . . 2 . . . . 1 . Operator 7 | . . . . . 3 4 . . . . . . Watcher 15 | . 2 . . . 5 8 . . . . . . Swarmer 44 | . 3 . . 4 12 14 2 . . . 3 6 Cutter 2 | . . . . . . 2 . . . . . . Grunt 68 | . 9 2 . . 14 30 6 4 . . . 3 Duelist 1 | . . . . . . 1 . . . . . . Sentry 22 | . . . . . 10 10 1 . . . . 1 Hunter 9 | . . . . . 3 3 . . . . 1 2 Programmer 12 | . . . . . . 11 . . . . 1 . Heavy 2 | . . . . . . 2 . . . . . . Thug 1 | . . . . . . 1 . . . . . . Best Kill Streak 7 | . 3 2 . 4 6 7 3 4 . . 3 6 Combat Bots Only 6 | . 3 2 . 4 6 6 3 4 . . 3 6 Max Kills in Single Turn 3 | . 1 1 . 1 2 3 1 1 . . 1 2 Gunslinging 1 | . . . . . . 1 . . . . . 1 Exploded 3 | . . . . . . 3 . . . . . . Melee . | . . . . . . . . . . . . . Uniques/NPCs Destroyed . | . . . . . . . . . . . . . Combat | -11 -10 -10 -10 -9 -8 -7 -7 -7 -7 -6 -6 -6 -------- Run | Yrd Mat Min Exi Min Mat Fac Low Low Dat Pro Fac Low Hostile Shots Fired 1109 | . 41 19 . 7 217 534 55 22 . . 27 187 Missed 372 | . 9 5 . 1 61 175 25 9 . . 9 78 Damage Taken 8194 | . 332 169 . 36 1643 3995 420 160 . . 155 1284 Core 6511 | . 272 140 . 27 1290 3134 347 132 . . 121 1048 Absorbed by Shields . | . . . . . . . . . . . . . Redirected to Core 5172 | . 188 96 . 27 1063 2542 247 93 . . 109 807 Redirected to Shielding 6 | . . . . . 6 . . . . . . . Ignored by Resistances 2415 | . 99 50 . 12 483 1196 119 46 . . 47 363 Core Remaining (%) 89 | 100 . . . 80 91 . . . . 87 . . Volleys Fired 570 | . 47 9 . 4 144 251 27 14 . . 16 58 Largest 2 | . 2 2 . 2 2 2 2 2 . . 2 2 Hottest 58 | . 40 40 . 40 56 56 56 56 . . 58 58 Shots Fired 1139 | . 94 18 . 8 288 501 54 28 . . 32 116 Gun 1136 | . 94 18 . 8 288 498 54 28 . . 32 116 Cannon . | . . . . . . . . . . . . . Launcher 3 | . . . . . . 3 . . . . . . Special . | . . . . . . . . . . . . . Kinetic 1136 | . 94 18 . 8 288 498 54 28 . . 32 116 Thermal . | . . . . . . . . . . . . . Explosive 3 | . . . . . . 3 . . . . . . Electromagnetic . | . . . . . . . . . . . . . Robot Hit Streak 96 | . 30 42 . 12 96 67 26 12 . . 39 56 Robot Miss Streak 4 | . 4 1 . . 2 1 1 1 . . . 2 Penetration Max 1 | . . . . . 1 1 1 1 . . . 1 Secondary Targets 19 | . 1 . . 1 4 6 4 1 . . 1 1 Max Gunslinging Chain 1 | . 1 . . 1 1 1 1 1 . . 1 1 Shots Hit Robots 1012 | . 75 17 . 7 256 457 46 24 . . 29 101 Core Hits 384 | . 27 5 . 4 97 182 20 11 . . 11 27 Critical Kills 9 | . . . . . 1 6 . . . . 1 1 Critical Parts Destroyed 14 | . . . . . 6 6 1 1 . . . . Critical Strikes 23 | . . . . . 7 12 1 1 . . 1 1 Destroy 23 | . . . . . 7 12 1 1 . . 1 1 Melee Attacks 8 | . . . . . 2 5 1 . . . . . Impact 8 | . . . . . 2 5 1 . . . . . Slashing . | . . . . . . . . . . . . . Piercing . | . . . . . . . . . . . . . Sneak Attacks . | . . . . . . . . . . . . . Combat Hostiles . | . . . . . . . . . . . . . Follow-up Attacks . | . . . . . . . . . . . . . Damage Inflicted 17878 | . 836 209 . 91 3815 9305 888 518 . . 487 1729 Guns 16981 | . 832 209 . 91 3793 8434 888 518 . . 487 1729 Cannons . | . . . . . . . . . . . . . Explosions 831 | . . . . . . 831 . . . . . . Melee . | . . . . . . . . . . . . . Ramming 66 | . 4 . . . 22 40 . . . . . . Kinetic 16981 | . 832 209 . 91 3793 8434 888 518 . . 487 1729 Thermal . | . . . . . . . . . . . . . Explosive 831 | . . . . . . 831 . . . . . . Electromagnetic . | . . . . . . . . . . . . . Impact . | . . . . . . . . . . . . . Slashing . | . . . . . . . . . . . . . Piercing . | . . . . . . . . . . . . . Highest Corruption 7 | . . . . . . 7 2 2 2 2 . . Average Corruption 3 | . . . . . . 4 2 2 2 2 . . Corruption Purged 5 | . . . . . . 5 . . . . . . Corruption Blocked . | . . . . . . . . . . . . . Effects 97 | . . . . . . 86 4 5 1 1 . . Message Errors 25 | . . . . . . 20 2 2 . 1 . . Matter Fused 24 | . . . . . . 24 . . . . . . Heat Flow Errors 12 | . . . . . . 12 . . . . . . Energy Discharges 12 | . . . . . . 11 1 . . . . . Parts Rejected 1 | . . . . . . 1 . . . . . . Parts Fused 1 | . . . . . . 1 . . . . . . Data Loss (minor) 13 | . . . . . . 8 1 3 1 . . . Data Loss (major) 2 | . . . . . . 2 . . . . . . Misfires 3 | . . . . . . 3 . . . . . . Alerts 3 | . . . . . . 3 . . . . . . Weapon Failures 1 | . . . . . . 1 . . . . . . Overload Shots . | . . . . . . . . . . . . . Overflow Damage 32 | . . . . . . 32 . . . . . . Projectiles . | . . . . . . . . . . . . . Explosions 32 | . . . . . . 32 . . . . . . Melee . | . . . . . . . . . . . . . Knockbacks 1 | . . . . . . 1 . . . . . . Impact 1 | . . . . . . 1 . . . . . . Kinetic . | . . . . . . . . . . . . . Secondary . | . . . . . . . . . . . . . Self-Inflicted Damage . | . . . . . . . . . . . . . Shots . | . . . . . . . . . . . . . Rammed 17 | . 2 . . 1 5 9 . . . . . . Targets Rammed 18 | . 2 . . 1 6 9 . . . . . . Kicked . | . . . . . . . . . . . . . Crushed 1 | . . . . . 1 . . . . . . . Highest Temperature 267 | . 44 10 . . 103 267 13 . . . . 10 Average Temperature 49 | . 11 4 . . 50 72 8 . . . . 6 Received Heat Transfer 3066 | . 252 117 . . 855 1323 261 117 . . . 141 Siege Activations . | . . . . . . . . . . . . . Robots Corrupted . | . . . . . . . . . . . . . Combat Hostiles . | . . . . . . . . . . . . . Parts Fried . | . . . . . . . . . . . . . Impact Corruptions . | . . . . . . . . . . . . . Robots Melted . | . . . . . . . . . . . . . Combat Hostiles . | . . . . . . . . . . . . . Parts Melted . | . . . . . . . . . . . . . Heat Transferred . | . . . . . . . . . . . . . Parts Sabotaged . | . . . . . . . . . . . . . Parts Stolen . | . . . . . . . . . . . . . Parts Stripped . | . . . . . . . . . . . . . Power Chain Reactions . | . . . . . . . . . . . . . Alert | -11 -10 -10 -10 -9 -8 -7 -7 -7 -7 -6 -6 -6 ------- Run | Yrd Mat Min Exi Min Mat Fac Low Low Dat Pro Fac Low Peak Influence 291 | . 278 50 . 72 273 291 . . . . 136 . Initial 1 | . . . . . . 1 . . . . . . Average 77 | . 89 26 . 35 91 77 . . . . 59 . Maximum Alert Level 1 | . 1 . . . 1 1 . . . . . . Low Security (%) 91 | 100 94 100 . 100 81 92 . . . . 100 . Level 1 8 | . 5 . . . 18 7 . . . . . . Level 2 . | . . . . . . . . . . . . . Level 3 . | . . . . . . . . . . . . . Level 4 . | . . . . . . . . . . . . . Level 5 . | . . . . . . . . . . . . . High Security . | . . . . . . . . . . . . . Max Security . | . . . . . . . . . . . . . Squads Dispatched 44 | . 1 . . . 5 34 . . . . 4 . Investigation 15 | . 1 . . . 2 8 . . . . 4 . Extermination 11 | . . . . . . 11 . . . . . . Reinforcement 14 | . . . . . 2 12 . . . . . . Assault . | . . . . . . . . . . . . . Garrison 4 | . . . . . 1 3 . . . . . . Intercept . | . . . . . . . . . . . . . Searches Triggered . | . . . . . . . . . . . . . Construction Impeded . | . . . . . . . . . . . . . Haulers Reinforced . | . . . . . . . . . . . . . Active Scanning Responses . | . . . . . . . . . . . . . Cargo Convoy Interrupts 1 | . . . . . . 1 . . . . . . Stealth | -11 -10 -10 -10 -9 -8 -7 -7 -7 -7 -6 -6 -6 --------- Run | Yrd Mat Min Exi Min Mat Fac Low Low Dat Pro Fac Low Distress Signals 7 | . 2 . . . 3 2 . . . . . . Communications Jammed . | . . . . . . . . . . . . . Distress Signals . | . . . . . . . . . . . . . Times Spotted 211 | . 17 2 . 4 52 98 11 4 . . 7 16 Peak Tracking Total 7 | . 4 2 . 4 7 6 7 4 . . 3 5 Tactical Retreats 11 | . 1 . . . 2 6 . . . . . 2 Traps | -11 -10 -10 -10 -9 -8 -7 -7 -7 -7 -6 -6 -6 ------- Run | Yrd Mat Min Exi Min Mat Fac Low Low Dat Pro Fac Low Traps Triggered 12 | . 1 . . . . 9 . . . . 2 . Indirectly . | . . . . . . . . . . . . . Trap Hack Attempts . | . . . . . . . . . . . . . Triggered . | . . . . . . . . . . . . . Disarmed 8 | . . . . . 8 . . . . . . . Reprogrammed 9 | . . . . . 3 6 . . . . . . Reused 3 | . . . . . 1 2 . . . . . . Traps Extracted . | . . . . . . . . . . . . . Installed . | . . . . . . . . . . . . . Triggered 6 | . . . . . 1 4 . . . . . 1 Machines | -11 -10 -10 -10 -9 -8 -7 -7 -7 -7 -6 -6 -6 ---------- Run | Yrd Mat Min Exi Min Mat Fac Low Low Dat Pro Fac Low Machines Disabled 10 | . . . . . . 9 1 . . . . . Max in Single Turn 7 | . . . . . . 7 1 . . . . . Garrison Access 4 | . . . . . 1 2 . . . . 1 . Machines Repaired . | . . . . . . . . . . . . . Machines Dismantled . | . . . . . . . . . . . . . Machines Sabotaged . | . . . . . . . . . . . . . Overloaded Fab Kills . | . . . . . . . . . . . . . Hacking | -11 -10 -10 -10 -9 -8 -7 -7 -7 -7 -6 -6 -6 --------- Run | Yrd Mat Min Exi Min Mat Fac Low Low Dat Pro Fac Low Machines Accessed 55 | . 8 . 1 . 11 24 1 1 4 . 5 . Terminals 36 | . 8 . . . 10 15 1 . . . 2 . Fabricators 8 | . . . . . . 6 . . . . 2 . Repair Stations . | . . . . . . . . . . . . . Recycling Units . | . . . . . . . . . . . . . Scanalyzers . | . . . . . . . . . . . . . Garrison Access 5 | . . . . . 1 3 . . . . 1 . Total Hacks 193 | . 23 . 1 . 51 71 5 1 29 . 12 . Successful 119 | . 6 . 1 . 22 46 5 1 29 . 9 . Failed 73 | . 17 . . . 29 24 . . . . 3 . Catastrophic 13 | . 2 . . . 4 7 . . . . . . Database Lockouts 1 | . . . . . . 1 . . . . . . Manual 63 | . 7 . 1 . 22 30 . . . . 3 . Terminals 136 | . 23 . . . 50 53 5 . . . 5 . Fabricators 20 | . . . . . . 14 . . . . 6 . Repair Stations . | . . . . . . . . . . . . . Recycling Units . | . . . . . . . . . . . . . Scanalyzers . | . . . . . . . . . . . . . Garrison Access 6 | . . . . . 1 4 . . . . 1 . Terminal Hacks 95 | . 6 . 1 . 20 31 5 1 29 . 2 . Record 18 | . . . . . 1 1 5 . 11 . . . Part Schematic 14 | . . . . . . 4 . . 10 . . . Robot Schematic 5 | . . . . . . . . . 5 . . . Robot Analysis 1 | . . . . . . 1 . . . . . . Prototype ID Bank 8 | . 2 . . . 2 1 . . 3 . . . Open Door 1 | . . . . . . . . 1 . . . . Open DSF 3 | . . . . . . 2 . . . . 1 . Branch Access Points 2 | . . . . . 1 1 . . . . . . Emergency Access Points 3 | . . . . . . 3 . . . . . . Machine Index 2 | . . . . . 1 1 . . . . . . Terminal Index 4 | . 1 . . . . 2 . . . . 1 . Alert Level 3 | . . . . . 2 1 . . . . . . Unreport Threat 7 | . . . . . 3 4 . . . . . . Locate Traps 4 | . 1 . . . 2 1 . . . . . . Disarm Traps 3 | . . . . . 3 . . . . . . . Reprogram Traps 3 | . . . . . 1 2 . . . . . . Dispatch Records 4 | . 1 . . . 1 2 . . . . . . Maintenance Status 1 | . . . . . 1 . . . . . . . Security Status 1 | . . . . . . 1 . . . . . . Surveillance Status 1 | . . . . . 1 . . . . . . . Extermination Status 1 | . . . . . . 1 . . . . . . Hauler Manifests 2 | . 1 . . . . 1 . . . . . . Registered Components 2 | . . . . . 1 1 . . . . . . Registered Prototypes 1 | . . . . . . 1 . . . . . . Derelict Proto ID Bank 1 | . . . 1 . . . . . . . . . Fabricator Hacks 18 | . . . . . . 13 . . . . 5 . Network Status 2 | . . . . . . 1 . . . . 1 . Load Schematic 8 | . . . . . . 6 . . . . 2 . Build 8 | . . . . . . 6 . . . . 2 . Repair Station Hacks . | . . . . . . . . . . . . . Recycling Unit Hacks . | . . . . . . . . . . . . . Scanalyzer . | . . . . . . . . . . . . . Garrison Access Hacks 4 | . . . . . 1 2 . . . . 1 . Seal Access 4 | . . . . . 1 2 . . . . 1 . Unauthorized Hacks 2 | . . . . . 1 . . . . . 1 . Terminals 2 | . . . . . 1 . . . . . 1 . Assimilate 1 | . . . . . . . . . . . 1 . Operators 1 | . . . . . 1 . . . . . . . Fabricators . | . . . . . . . . . . . . . Repair Stations . | . . . . . . . . . . . . . Recycling Units . | . . . . . . . . . . . . . Scanalyzers . | . . . . . . . . . . . . . Garrison Access . | . . . . . . . . . . . . . Data Cores Recovered 2 | . . . . . 1 1 . . . . . . Used . | . . . . . . . . . . . . . Hacking Detections 43 | . 8 . . . 10 20 1 . . . 4 . Full Trace Events 12 | . 1 . . . 2 6 1 . . . 2 . Feedback Events . | . . . . . . . . . . . . . Feedback Blocked . | . . . . . . . . . . . . . Robot Schematics Acquired 5 | . . . . . . . . . 5 . . . Robots Built . | . . . . . . . . . . . . . Authchips . | . . . . . . . . . . . . . Time . | . . . . . . . . . . . . . Total Robot Build Rating . | . . . . . . . . . . . . . Part Schematics Acquired 14 | . . . . . . 4 . . 10 . . . Parts Built 8 | . . . . . . 6 . . . . 2 . Authchips . | . . . . . . . . . . . . . Time 532 | . . . . . . 454 . . . . 78 . Total Part Build Rating 36 | . . . . . . 26 . . . . 10 . Parts Repaired . | . . . . . . . . . . . . . Time . | . . . . . . . . . . . . . Parts Recycled . | . . . . . . . . . . . . . Recycled Matter . | . . . . . . . . . . . . . Retrieved Matter . | . . . . . . . . . . . . . Retrieved Components . | . . . . . . . . . . . . . Parts Scanalyzed . | . . . . . . . . . . . . . Part Schematics Acquired . | . . . . . . . . . . . . . Parts Damaged . | . . . . . . . . . . . . . Bothacking | -11 -10 -10 -10 -9 -8 -7 -7 -7 -7 -6 -6 -6 ------------ Run | Yrd Mat Min Exi Min Mat Fac Low Low Dat Pro Fac Low Used RIF Installer . | . . . . . . . . . . . . . Robots Hacked . | . . . . . . . . . . . . . Non-combat . | . . . . . . . . . . . . . Combat . | . . . . . . . . . . . . . Robot Hacks Applied . | . . . . . . . . . . . . . Relay Couplers Released . | . . . . . . . . . . . . . Fabnet Peak Effective % . | . . . . . . . . . . . . . Robots Rewired . | . . . . . . . . . . . . . Allies Hacked . | . . . . . . . . . . . . . Hacks Repelled 1 | . . . . . . 1 . . . . . . Allies | -11 -10 -10 -10 -9 -8 -7 -7 -7 -7 -6 -6 -6 -------- Run | Yrd Mat Min Exi Min Mat Fac Low Low Dat Pro Fac Low Total Allies 5 | . . . . . . 3 1 . . . 1 . Largest Group 3 | . . . . . . 3 1 . . . 1 . Highest-Rated Group 127 | . . . . . . 93 127 . . . 26 . Highest-Rated Ally 127 | . . . . . . 31 127 . . . 26 . Total Orders . | . . . . . . . . . . . . . Ally Attacks 38 | . . . . . . 38 . . . . . . Total Damage 488 | . . . . . . 488 . . . . . . Kills 3 | . . . . . . 3 . . . . . . Allies Corrupted . | . . . . . . . . . . . . . Allies Melted . | . . . . . . . . . . . . . Intel | -11 -10 -10 -10 -9 -8 -7 -7 -7 -7 -6 -6 -6 ------- Run | Yrd Mat Min Exi Min Mat Fac Low Low Dat Pro Fac Low Robot Analysis Total 1 | . . . . . . 1 . . . . . . Derelict Logs Recovered 6 | . . . . 1 . . 1 1 . 1 . 2 Drone Launches . | . . . . . . . . . . . . . Drone Recoveries . | . . . . . . . . . . . . . Exploration | -11 -10 -10 -10 -9 -8 -7 -7 -7 -7 -6 -6 -6 ------------- Run | Yrd Mat Min Exi Min Mat Fac Low Low Dat Pro Fac Low Turns Passed 13034 | 53 1273 306 337 436 2652 6389 348 380 23 95 417 325 Spaces Moved 10956 | 33 671 173 210 261 1320 4255 878 1137 86 365 1007 560 Core 11 | 11 . . . . . . . . . . . . Treads 5310 | 22 671 173 210 261 1320 2653 . . . . . . Legs . | . . . . . . . . . . . . . Wheels . | . . . . . . . . . . . . . Hover . | . . . . . . . . . . . . . Flight 5635 | . . . . . . 1602 878 1137 86 365 1007 560 Fastest Speed 26 | 50 160 160 160 160 145 26 26 26 26 26 26 26 Average Speed 92 | 123 160 160 160 160 154 116 26 26 26 26 26 26 Slowest Speed 170 | 160 160 160 160 160 170 170 26 26 26 26 26 26 Overloaded Moves . | . . . . . . . . . . . . . Propulsion Burnouts . | . . . . . . . . . . . . . Robots Hopped 27 | . . . . . . 19 1 . . . 7 . Cave-ins Triggered . | . . . . . . . . . . . . . Exploration Rate (%) 57 | 4 96 26 41 65 96 86 73 94 68 53 20 30 Regions Visited 12 Branch Regions 8 Pre-discovered Areas 2 | . . . . . . . 1 . 1 . . . Known Exits Taken 11 | . 1 1 1 1 1 1 1 1 1 1 1 . Unknown Exits Taken 1 | 1 . . . . . . . . . . . . Scrap Searched 7 | . . 1 . 1 . . 1 3 . 1 . . Spaces Dug 7 | . . . . . 2 5 . . . . . . Terrain Destroyed 42 | . . . . . 3 32 1 . . . 1 5 Melee 7 | . . . . . 2 5 . . . . . . Projectile 11 | . . . . . 1 3 1 . . . 1 5 AOE 23 | . . . . . . 23 . . . . . . Terrain Rammed . | . . . . . . . . . . . . . Walls Destroyed . | . . . . . . . . . . . . . Machines Disabled . | . . . . . . . . . . . . . Actions | -11 -10 -10 -10 -9 -8 -7 -7 -7 -7 -6 -6 -6 --------- Run | Yrd Mat Min Exi Min Mat Fac Low Low Dat Pro Fac Low Total 12687 | 45 784 184 211 271 1656 5210 938 1192 85 364 1122 625 Wait 725 | 4 34 3 . . 78 506 5 17 . . 75 3 Move 10890 | 32 670 172 209 260 1319 4216 875 1136 85 364 992 560 Hop 27 | . . . . . . 19 1 . . . 7 . Pick Up 35 | 4 8 . . 1 9 7 2 1 . . 2 1 Fast Attach 29 | 1 1 . 1 . 6 14 . . . . 6 . Attach 20 | 4 3 . . . 5 5 1 . . . 2 . Detach . | . . . . . . . . . . . . . Swap 34 | . 2 . . . 12 13 4 . . . 3 . Drop 47 | . 5 . 1 1 16 15 1 . . . 8 . Fire 570 | . 47 9 . 4 144 251 27 14 . . 16 58 Melee 8 | . . . . . 2 5 1 . . . . . Ram . | . . . . . . . . . . . . . Kick . | . . . . . . . . . . . . . Crush 18 | . 2 . . 1 6 9 . . . . . . Escape Stasis 23 | . . . . . . 23 . . . . . . Rewire . | . . . . . . . . . . . . . Trap . | . . . . . . . . . . . . . Miscellaneous 261 | . 12 . . 4 59 127 21 24 . . 11 3 Route ------- -11/Scrapyard -10/Materials (discovered 4 exits: [*Mat x3] / *Min) -10/Mines (discovered 2 exits: [*Mat] / *Exi) -10/Exiles -9/Mines -8/Materials (discovered 3 exits: *Fac x3) -7/Factory (discovered 3 exits: *Fac / *Low x2) -7/Lower Caves (discovered 2 exits: *Low / *Fac) -7/Lower Caves (discovered 2 exits: *Fac / *Dat) -7/Data Miner -6/Proximity Caves -6/Factory (discovered 5 exits: *Fac x2 / *Low x2 / Ext) -6/Lower Caves History --------- Turn | Location | Event 1 | -11/Scrapyard | Upgraded with Propulsion slot (x1) 1 | -11/Scrapyard | Upgraded with Utility slot (x1) 1 | -11/Scrapyard | Upgraded with Weapon slot (x1) 19 | -11/Scrapyard | Discovered new exit (range 16) 54 | -11/Scrapyard | Entered Materials 319 | -10/Materials | Build established: Mutant 429 | -10/Materials | Discovered new exit (range 16) 552 | -10/Materials | Discovered new exit (range 9) 607 | -10/Materials | Identified exit to Mines 834 | -10/Materials | Reached level 2 837 | -10/Materials | Discovered new exit (range 4) 1188 | -10/Materials | Discovered new exit (range 16) 1327 | -10/Materials | Entered Mines 1419 | -10/Mines | Discovered new exit (range 9) 1556 | -10/Mines | Deemed a non-threat by the Exiles lab entrance 1556 | -10/Mines | Discovered new exit (range 5) 1561 | -10/Mines | Identified exit to Exiles 1595 | -10/Mines | Assembled infested the area 1633 | -10/Mines | Entered Exiles 1673 | -10/Exiles | Met 8R-AWN 1699 | -10/Exiles | Met EX-HEX 1745 | -10/Exiles | Met EX-BIN 1763 | -10/Exiles | Aligned with FarCom system 1765 | -10/Exiles | Given EX-Vault access code 1801 | -10/Exiles | Opened EX-Vault 1812 | -10/Exiles | Found 0b10 Alert Chip 1850 | -10/Exiles | Warned to stay clear of 0b10 Research branches 1951 | -10/Exiles | Discovered new exit (range 14) 1968 | -10/Exiles | Identified exit to Mines 1970 | -10/Exiles | Left Exiles lab with 0b10 Alert Chip 1970 | -10/Exiles | Entered Mines 1972 | -9/Mines | Reached level 3 2118 | -9/Mines | Build established: Skirmisher 2217 | -9/Mines | Found a damaged Exp. Sensor Array with a note attached 2221 | -9/Mines | Found Prototype Device 2250 | -9/Mines | Learned Materials trap positions 2390 | -9/Mines | Discovered new exit (range 11) 2404 | -9/Mines | Identified exit to Materials 2406 | -9/Mines | Entered Materials 2407 | -8/Materials | Loaded intel: 19 trap records 2408 | -8/Materials | Reached level 4 2408 | -8/Materials | Reached level 5 2408 | -8/Materials | Reached level 6 2411 | -8/Materials | Upgraded with Utility slot (x3) 2411 | -8/Materials | Identified Exp. Sensor Array 2491 | -8/Materials | Garrison activated, responded to threat 2510 | -8/Materials | Core integrity fell below 50% 2679 | -8/Materials | Reached level 7 2718 | -8/Materials | Build established: Hacker-Skirmisher 2748 | -8/Materials | Upgraded with Utility slot (x1) 2803 | -8/Materials | Core integrity fell below 20% 3261 | -8/Materials | Discovered new exit (range 9) 3573 | -8/Materials | Reached level 8 4368 | -8/Materials | Discovered new exit (range 15) 4390 | -8/Materials | Identified exit to Factory 4490 | -8/Materials | Reached level 9 4856 | -8/Materials | Discovered exit to Factory (range 16) 5058 | -8/Materials | Entered Factory 5060 | -7/Factory | Reached level 10 5191 | -7/Factory | Identified exit to DSF 5603 | -7/Factory | Reached level 11 5630 | -7/Factory | Upgraded with Utility slot (x1) 5884 | -7/Factory | Garrison activated, responded to threat 6069 | -7/Factory | Allied Derelicts emerged from ambush trap array 6319 | -7/Factory | Reached level 12 6346 | -7/Factory | Upgraded with Utility slot (x1) 6461 | -7/Factory | P-60 Hacker assimilated allied 8Y-QBX(g) 6514 | -7/Factory | Cargo convoy interrupted 7019 | -7/Factory | Fabricated Imp. Hacking Suite (x1) 7677 | -7/Factory | Fabricated Imp. Hacking Suite (x1) 7835 | -7/Factory | Reached level 13 8034 | -7/Factory | Central database locked down 8370 | -7/Factory | Identified exit to Lower Caves 8532 | -7/Factory | Discovered new exit (range 7) 8583 | -7/Factory | Core integrity fell below 50% 8598 | -7/Factory | Reached level 14 8644 | -7/Factory | Identified exit to Factory 8672 | -7/Factory | Upgraded with Propulsion slot (x2) 8717 | -7/Factory | Fabricated Cld. VTOL Module (x1) 8959 | -7/Factory | Fabricated Cld. VTOL Module (x1) 10433 | -7/Factory | Reached level 15 10638 | -7/Factory | Garrison activated, responded to threat 10771 | -7/Factory | Fabricated Cld. VTOL Module (x1) 10859 | -7/Factory | Build established: Hacker-Scout 10978 | -7/Factory | Fabricated Cld. VTOL Module (x1) 11447 | -7/Factory | Entered Lower Caves 11496 | -7/Lower Caves | Encountered a Warlord checkpoint 11520 | -7/Lower Caves | Attracted the attention of an 0b10 base 11582 | -7/Lower Caves | Core integrity fell below 20% 11589 | -7/Lower Caves | Reached level 16 11600 | -7/Lower Caves | CL-ANK showed up to help 11617 | -7/Lower Caves | Upgraded with Utility slot (x1) 11618 | -7/Lower Caves | Identified exit to Lower Caves 11618 | -7/Lower Caves | Learned 6 Upper Caves zone layouts 11618 | -7/Lower Caves | Learned Research trap positions 11618 | -7/Lower Caves | Learned Research stockpile data 11633 | -7/Lower Caves | CL-ANK revealed a hidden path 11795 | -7/Lower Caves | Entered another Lower Caves area 11814 | -7/Lower Caves | Discovered exit to Factory (range 5) 11872 | -7/Lower Caves | Encountered a Warlord checkpoint 11899 | -7/Lower Caves | Build established: Wizard-Scout 11946 | -7/Lower Caves | Learned 4 Factory zone layouts 12124 | -7/Lower Caves | Spotted B-75 Beast 12139 | -7/Lower Caves | Discovered new exit (range 9) 12145 | -7/Lower Caves | Identified exit to Data Miner 12175 | -7/Lower Caves | Entered Data Miner 12175 | -7/Data Miner | Discovered new exit (range 6) 12179 | -7/Data Miner | Identified exit to Proximity Caves 12182 | -7/Data Miner | Met Data Miner 12187 | -7/Data Miner | Learned location of Section 7 (-2) 12187 | -7/Data Miner | Acquired the access code to Warlord's prototype stash 12192 | -7/Data Miner | Received God Mode back door access code from Data Miner 12198 | -7/Data Miner | Entered Proximity Caves 12200 | -6/Proximity Caves | Reached level 17 12219 | -6/Proximity Caves | Learned 8 Factory zone layouts 12292 | -6/Proximity Caves | Discovered exit to Factory (range 7) 12293 | -6/Proximity Caves | Entered Factory 12294 | -6/Factory | Identified exit to Lower Caves 12295 | -6/Factory | Identified exit to Extension 12295 | -6/Factory | Identified exit to Factory 12405 | -6/Factory | Fabricated Imp. Hacking Suite (x1) 12502 | -6/Factory | Fabricated Imp. Hacking Suite (x1) 12638 | -6/Factory | Reached level 18 12649 | -6/Factory | Upgraded with Utility slot (x1) 12690 | -6/Factory | Discovered exit to Factory (range 6) 12706 | -6/Factory | Discovered exit to Lower Caves (range 16) 12710 | -6/Factory | Entered Lower Caves 12760 | -6/Lower Caves | Core integrity fell below 50% 12778 | -6/Lower Caves | Learned Factory stockpile data 12810 | -6/Lower Caves | Spotted B-75 Beast 12836 | -6/Lower Caves | Attracted the attention of an 0b10 checkpoint 12871 | -6/Lower Caves | Learned Factory security intel 12997 | -6/Lower Caves | Core integrity fell below 20% 13035 | -6/Lower Caves | Destroyed by B-75 Beast with Heavy Plasma Cannon Last Messages --------------- 12977_ Acquired 105 matter. 12978_ Acquired 49 matter. 12978_ Slug penetrates Wall. 12979_ Acquired 8 matter. 12981_ Slug penetrates Wall. 12981_ Slug penetrates B-75 Beast. 12982_ Acquired 8 matter. 12983_ Flexi-carbon Leg fries itself beyond repair. 12984_ Slug penetrates B-75 Beast. 12984_ Slug penetrates Wall. 12995_ Slug penetrates B-75 Beast. 12998_ Slug penetrates Wall. 12998_ Slug penetrates B-75 Beast. 13001_ Slug penetrates Wall. 13002_ Knocked back. 13004_ Acquired 5 matter. 13005_ Slug penetrates Wall. 13014_ Slug penetrates B-75 Beast. 13022_ Slug penetrates Wall. 13028_ Slug penetrates B-75 Beast. Map ----- +----------------------------------------------------+ | ?????????????????????????????????????????????????? | | ?????????????????????????????????????????????????? | | ?????????????????????????????????????????????????? | | ?????????????????????????????????????????????????? | | ?????????????????????????????????????????????????? | | ??????????????????#???????????????????????????#??? | | ??????????????????????????????????#??????????????? | | ?????????????????????????????????????????????????? | | ???????????????????????????????????????#?#???????? | | ????????????????????????????#######????????????#?? | | ????????????????????????????#" "" #??#???????????? | | ????????????????????????????# """ #??????????????? | | ?????????????#??????????#???# "" "###??#######???? | | ???????????????????????????### # ##?# ##?## | | ???????????????????????##??# # # ### ### | | ??????????????????????????## ## | | ???????????????#????????### | | ??????????? ### ??????# #### | | ??????????? ??????### #### | | ?????????? ###?????## ###### ##### | | ???????????? ##?#???## ##?### ###???# | | ???????####??# #???#### ###### ##????## | | ???????? #??# #?###%#; ;# ####?## | | ???????? ### ### ## ### ### | | ?????????# ## "## #### | | ?????????# %@ # "####### " | | ???????### # ###????# ## | | ???????? ;## %# #??#??#" "#? | | ??????#? "?# % #????#" ### | | ????????? ## ###; ; #??? "" ## | | ??????????## ###;;;;"""##??# " ## | | ??????????# % ## ##??# "" | | ????#?????# ##;;;;;"####""" | | ???## ????# ### " BB #### | | ??## ???## ??# %% BB% % ^ #??## | | ??# #???## ???# ## ######## "# ###### | | ??# #??## ??## # ## ####???## ##### ## | | ??# ### ??#" ######## #????# #?### # | | ### ??#" #### #???## #???## | | " % ####" % ## ##????# #?#??# | | %" & % # ##??#??# #????# | | ????# % # ##??????# #???## # | | ????## ##### # ##??????# #???# # | | ?????## ????## ## #####??# ##### | | ??????##* ?????# #???# | | ?????? % ?? ???## ""# ##???# | | ????? [ ???????## ## #????######## | | ??# ????????# # ## #### #???????#???## | | ??# ?????????########??## #???#????#???# ### | | ??# ???????????????#????## #????????????# #?# | +----------------------------------------------------+ Best States ------------- Heat Dissipation 62 Energy Generation 16 Energy Capacity 290 Matter Stores 300 Matter Capacity 300 Sight Range 16 Robot Scan Range 34 Terrain Scan Range 16 Terrain Scan Density 10 Armor Coverage 150 Resistance: KI 20 Resistance: TH 20 Resistance: EX 20 Resistance: EM 20 Resistance: I 20 Resistance: S 20 Resistance: P 20 Power Shielding 66 Weapon Shielding 33 Weapon Cycling 15 Evasion (%) 72 Targeting Accuracy 8 Recoil Reduction 2 Offensive Hacking 56 Defensive Hacking 20 Item Schematics ----------------- Imp. Hacking Suite | -7/Factory | Hacked Cld. VTOL Module | -7/Factory | Hacked Imp. Corruption Screen | -7/Factory | Hacked Force Field | -7/Factory | Hacked Combat Drone Bay | -7/Data Miner | Free Lgt. Regenerative Plating | -7/Data Miner | Free Biomechanical Wings | -7/Data Miner | Free Exp. Targeting Computer | -7/Data Miner | Free Cld. Plasma Cannon | -7/Data Miner | Free Hvy. Treads | -7/Data Miner | Free Adv. Shield Generator | -7/Data Miner | Free Adv. Plasma Cannon | -7/Data Miner | Free Hvy. Plasma Cannon | -7/Data Miner | Free Imp. System Guard | -7/Data Miner | Free Robot Schematics ------------------ R-10 Processor | -7/Data Miner | Free W-25 Informer | -7/Data Miner | Free M-22 Extractor | -7/Data Miner | Free X-67 Chaingunner | -7/Data Miner | Free L-41 Fighter | -7/Data Miner | Free Fabricated ------------ Imp. Hacking Suite | x1 | -7/Factory Imp. Hacking Suite | x1 | -7/Factory Cld. VTOL Module | x1 | -7/Factory Cld. VTOL Module | x1 | -7/Factory Cld. VTOL Module | x1 | -7/Factory Cld. VTOL Module | x1 | -7/Factory Imp. Hacking Suite | x1 | -6/Factory Imp. Hacking Suite | x1 | -6/Factory Alien Tech Used ----------------- None Achievements -------------- None Challenges ------------ None RPGLIKE | -11 -10 -10 -10 -9 -8 -7 -7 -7 -7 -6 -6 -6 --------- Run | Yrd Mat Min Exi Min Mat Fac Low Low Dat Pro Fac Low Levels Raised 17 | . 1 . . 1 6 6 1 . . 1 1 . XP Earned 30324 | 4000 1675 750 350 1307 8741 9232 570 288 220 1000 1431 760 XP Spent 29065 | 3875 1500 . . 1500 8690 8000 2600 . . . 2900 . Upgrades 45 | 13 3 . . 2 18 7 1 . . . 1 . Propulsion Slot 3 | 1 . . . . . 2 . . . . . . Utility Slot 9 | 1 . . . . 4 2 1 . . . 1 . Weapon Slot 1 | 1 . . . . . . . . . . . . Core Integrity 8 | . . . . . 8 . . . . . . . Heat Dissipation 3 | . . . . . 3 . . . . . . . Mass Support 3 | . . . . . . 3 . . . . . . Inventory Capacity 3 | 3 . . . . . . . . . . . . Sensor Range 7 | 7 . . . . . . . . . . . . Ranged Accuracy 8 | . 3 . . 2 3 . . . . . . . Protomatter Created 2467 | . 153 . . 27 644 1058 227 181 . . 65 112 Integrity Restored 5714 | . 258 . . 81 1323 2735 483 543 . . 222 69 Core 5503 | . 240 . . 81 1323 2542 483 543 . . 222 69 Parts 211 | . 18 . . . . 193 . . . . . . Protomatter Decayed 471 | . 53 18 . . 152 76 108 . . . 40 24 Game ------ Seed OpticalZhirovComputer Manual? 0 Play Time 01:44:09 Cumulative 46.0 hours Start 2025.03.28 @ 13:23:47 End 2025.03.28 @ 15:09:02 Sessions 1 Manual Loads 0 Difficulty Adventurer Special Mode Winter2019/RPGLIKE Game No. 72 Rogue 70 Adventurer 2 Explorer 0 Win Type - Total 0 Types 0/0/0/0/0/0/0/0/0 Lore% 21 Gallery% 29 Achievement% 37 Wizard Run 0 Options --------- Layout 0 ASCII 0 Keyboard 0 Movement Mouse Keybinds 0 Fullscreen 1 Font 24/Smallcaps Map View 76x56 Zoom Use 0% Tactical HUD 1 Map Filters NONE Filters NONE Steam 1 RUN: a2a4dcd2-d642-4ddb-a29c-e9a948762161